fUSD/lending_fUSD_20240201
["ID","MTS","AMOUNT","RATE_DAILY","PERIOD"]
[313133788,1706795449557,-649.07,0.00038904,4]
[313133789,1706795449566,-500.0,0.00038904,4]
[313133790,1706795449576,-1993.07,0.00038904,4]
[313133791,1706795449585,-5037.04,0.00038904,4]
[313133792,1706795449594,-1000.0,0.00038904,7]
[313133793,1706795449603,-211.4769419,0.00038904,7]
[313133794,1706795449613,-664.31,0.00038904,4]
[313133795,1706795449623,-182.4895492,0.00038904,4]
[313133796,1706795449633,-500.0,0.00038904,4]
[313133797,1706795449643,-314.37965918,0.00038904,4]
[313133798,1706795449653,-1589.64,0.00038904,4]
[313133799,1706795449662,-500.0,0.00038904,4]
[313133800,1706795449672,-1069.77,0.00038904,4]
[313133801,1706795449681,-428.46659755,0.00038904,4]
[313133802,1706795449691,-731.97,0.00038904,4]
[313133803,1706795449701,-500.0,0.00038904,4]
[313133804,1706795449711,-500.0,0.00038904,4]
[313133805,1706795449720,-500.0,0.00038904,4]
[313133806,1706795449729,-500.0,0.00038904,4]
[313133807,1706795449740,-500.0,0.00038904,4]
[313133808,1706795449749,-500.0,0.00038904,4]
[313133809,1706795449759,-552.56,0.00038904,4]
[313133810,1706795449768,-500.0,0.00038904,4]
[313133811,1706795449778,-500.0,0.00038904,4]
[313133812,1706795449787,-500.0,0.00038904,4]
[313133813,1706795449798,-500.0,0.00038904,4]
[313133814,1706795449810,-586.13,0.00038904,4]
[313133815,1706795449819,-500.0,0.00038904,4]
[313133816,1706795449828,-500.0,0.00038904,4]
[313133817,1706795449837,-500.0,0.00038904,4]
[313133818,1706795449846,-500.0,0.00038904,4]
[313133819,1706795449856,-500.0,0.00038904,4]
[313133820,1706795449865,-500.0,0.00038904,4]
[313133821,1706795449875,-500.0,0.00038904,2]
[313133822,1706795449884,-775.07,0.00038904,4]
[313133823,1706795449894,-500.0,0.00038904,4]
[313133824,1706795449903,-500.0,0.00038904,4]
[313133825,1706795449912,-500.0,0.00038904,4]
[313133826,1706795449922,-500.0,0.00038904,4]
[313133827,1706795449931,-500.0,0.00038904,4]
[313133828,1706795449940,-500.0,0.00038904,4]
[313133829,1706795449949,-842.52,0.00038904,4]
[313133830,1706795449959,-500.0,0.00038904,4]
[313133831,1706795449968,-500.0,0.00038904,4]
[313133832,1706795449978,-500.0,0.00038904,4]
[313133833,1706795449987,-500.0,0.00038904,4]
[313133834,1706795449996,-500.0,0.00038904,4]
[313133835,1706795450005,-500.0,0.00038904,5]
[313133836,1706795450014,-500.0,0.00038904,4]
[313133837,1706795450023,-500.0,0.00038904,4]
[313133838,1706795450033,-623.0,0.00038904,5]
[313133839,1706795450043,-1135.03,0.00038904,4]
[313133840,1706795450052,-500.0,0.00038904,4]
[313133841,1706795450061,-500.0,0.00038904,4]
[313133842,1706795450071,-500.0,0.00038904,4]
[313133843,1706795450080,-500.0,0.00038904,4]
[313133844,1706795450090,-539.73,0.00038904,4]
[313133845,1706795450100,-500.0,0.00038904,4]
[313133846,1706795450109,-500.0,0.00038904,4]
[313133847,1706795450119,-500.0,0.00038904,4]
[313133848,1706795450128,-554.61201325,0.00038904,4]
[313133849,1706795450138,-500.0,0.00038904,4]
[313133850,1706795450147,-500.0,0.00038904,4]
[313133851,1706795450157,-500.0,0.00038904,4]
[313133852,1706795450166,-500.0,0.00038904,4]
[313133853,1706795450176,-500.0,0.00038904,4]
[313133854,1706795450185,-500.0,0.00038904,4]
[313133855,1706795450195,-500.0,0.00038904,4]
[313133856,1706795450205,-300.0,0.00038904,2]
[313133857,1706795450215,-300.0,0.00038904,2]
[313133858,1706795450223,-355.6016207,0.00038909,2]
[313133859,1706795450233,-16664.08288245,0.00038958,2]
[313133860,1706795450242,-404.85902317,0.0003898,2]
[313133861,1706795450251,-10215.04077166,0.0003898,10]
[313133862,1706795450260,-5000.0,0.00038986,4]
[313133863,1706795450270,-5000.0,0.00038986,2]
[313133864,1706795450279,-5000.0,0.00038986,2]
[313133865,1706795450288,-5000.0,0.00038986,2]
[313133866,1706795450297,-5000.0,0.00038986,2]
[313133867,1706795450308,-200.0,0.00038987,3]
[313133868,1706795450318,-200.0,0.00038987,2]
[313133869,1706795450327,-100000.0,0.00039,9]
[313133870,1706795450336,-491.29664348,0.00039,4]
[313133871,1706795450345,-621.9570935,0.00039,4]
[313133872,1706795450354,-978.92166154,0.00039,4]
[313133873,1706795450363,-1432.47857544,0.00039,2]
[313133874,1706795450372,-659.621397,0.00039,40]
[313133875,1706795450381,-155.0,0.00039,5]
[313133876,1706795450390,-600.0,0.00039,40]
[313133877,1706795450399,-1285.7,0.00039,2]
[313133878,1706795450409,-1850.45,0.00039,30]
[313133879,1706795450418,-402.0,0.00039,9]
[313133880,1706795450427,-7222.89832708,0.00039,2]
[313133881,1706795450437,-17106.0,0.00039,2]
[313133882,1706795450446,-1000.0,0.00039,6]
[313133883,1706795450455,-600.0,0.00039,40]
[313133884,1706795450468,-443.0,0.00039,28]
[313133885,1706795450477,-3000.0,0.00039,24]
[313133886,1706795450486,-151.0,0.00039009,4]
[313133887,1706795450495,-3000.0,0.0003901,24]
[313133888,1706795450504,-5528.083231,0.0003902,24]
[313133889,1706795450514,-945.0,0.00039046,7]
[313133890,1706795450523,-584.0,0.00039046,7]
[313133891,1706795450532,-583.0,0.00039046,7]
[313133892,1706795450542,-5800.0,0.00039072,2]
[313133893,1706795450552,-5800.0,0.0003908,2]
[313133894,1706795450561,-5800.0,0.00039089,2]
[313133895,1706795450570,-5800.0,0.00039097,2]
[313133896,1706795450580,-158.856589,0.00039098,30]
[313133897,1706795450589,-1396.96,0.000391,7]
[313133898,1706795450598,-5800.0,0.00039105,2]
[313133899,1706795450607,-5800.0,0.00039114,2]
[313133900,1706795450616,-5800.0,0.00039123,2]
[313133901,1706795450625,-5800.0,0.00039131,2]
[313133902,1706795450634,-5800.0,0.0003914,2]
[313133903,1706795450643,-5800.0,0.00039148,2]
[313133904,1706795450653,-178.38782152,0.00039171,12]
[313133905,1706795450662,-151.0201,0.00039198,10]
[313133906,1706795450671,-50000.0,0.00039225,30]
[313133907,1706795450680,-3834.772004,0.00039244,2]
[313133908,1706795450689,-1095.649144,0.00039244,2]
[313133909,1706795450699,-547.824572,0.00039244,2]
[313133910,1706795450707,-547.824572,0.00039244,2]
[313133911,1706795450716,-3333.891924,0.00039244,2]
[313133912,1706795450725,-245.549011,0.00039244,2]
[313133913,1706795450734,-500.0,0.00039249,7]
[313133914,1706795450744,-1000.0,0.0003926,2]
[313133915,1706795450754,-50000.0,0.00039262,3]
[313133916,1706795450764,-313.74,0.0003927,2]
[313133917,1706795450773,-1000.0,0.000393,15]
[313133918,1706795450782,-400.0,0.000393,7]
[313133919,1706795450791,-152.0,0.00039389,9]
[313133920,1706795450801,-945.0,0.00039392,7]
[313133921,1706795450811,-584.0,0.00039392,7]
[313133922,1706795450820,-583.0,0.00039392,7]
[313133923,1706795450829,-150.0,0.00039406,2]
[313133924,1706795450839,-1337.94,0.00039452,4]
[313133925,1706795450848,-500.0,0.00039452,4]
[313133926,1706795450857,-1000.0,0.00039452,7]
[313133927,1706795450866,-416.53513189,0.00039452,2]
[313133928,1706795450876,-500.0,0.00039452,7]
[313133929,1706795450885,-500.0,0.00039452,4]
[313133930,1706795450894,-500.9,0.00039452,4]
[313133931,1706795450903,-500.0,0.00039452,4]
[313133932,1706795450913,-500.0,0.00039452,2]
[313133933,1706795450922,-500.0,0.00039452,4]
[313133934,1706795450932,-500.0,0.00039452,4]
[313133935,1706795450941,-500.0,0.00039452,4]
[313133936,1706795450951,-500.0,0.00039452,4]
[313133937,1706795450961,-500.0,0.00039452,2]
[313133938,1706795450971,-500.0,0.00039452,4]
[313133939,1706795450981,-918.04,0.00039452,4]
[313133940,1706795450990,-500.0,0.00039452,4]
[313133941,1706795451000,-500.0,0.00039452,4]
[313133942,1706795451009,-500.0,0.00039452,4]
[313133943,1706795451019,-500.0,0.00039452,4]
[313133944,1706795451028,-500.0,0.00039452,4]
[313133945,1706795451037,-552.39219702,0.00039452,4]
[313133946,1706795451047,-500.0,0.00039452,4]
[313133947,1706795451058,-532.35,0.00039452,4]
[313133948,1706795451067,-1038.98,0.00039452,4]
[313133949,1706795451077,-500.0,0.00039452,4]
[313133950,1706795451086,-630.44,0.00039452,4]
[313133951,1706795451095,-500.0,0.00039452,4]
[313133952,1706795451105,-855.46,0.00039452,4]
[313133953,1706795451114,-500.0,0.00039452,4]
[313133954,1706795451124,-500.0,0.00039452,4]
[313133955,1706795451133,-7491.3,0.00039452,4]
[313133956,1706795451142,-649.07,0.00039452,4]
[313133957,1706795451151,-500.0,0.00039452,4]
[313133958,1706795451161,-1993.07,0.00039452,4]
[313133959,1706795451171,-5037.04,0.00039452,4]
[313133960,1706795451180,-1000.0,0.00039452,7]
[313133961,1706795451189,-664.31,0.00039452,4]
[313133962,1706795451199,-500.0,0.00039452,4]
[313133963,1706795451208,-1589.64,0.00039452,4]
[313133964,1706795451217,-500.0,0.00039452,4]
[313133965,1706795451226,-1069.77,0.00039452,4]
[313133966,1706795451236,-731.97,0.00039452,4]
[313133967,1706795451245,-407.77751407,0.00039452,4]
[313133968,1706795451255,-500.0,0.00039452,4]
[313133969,1706795451264,-605.85195954,0.00039452,4]
[313133970,1706795451274,-500.0,0.00039452,4]
[313133971,1706795451284,-500.0,0.00039452,4]
[313133972,1706795451294,-500.0,0.00039452,4]
[313133973,1706795451304,-552.56,0.00039452,4]
[313133974,1706795451314,-411.66012604,0.00039452,4]
[313133975,1706795451323,-500.0,0.00039452,4]
[313133976,1706795451333,-500.0,0.00039452,4]
[313133977,1706795451342,-500.0,0.00039452,4]
[313133978,1706795451351,-586.13,0.00039452,4]
[313133979,1706795451361,-500.0,0.00039452,4]
[313133980,1706795451370,-500.0,0.00039452,4]
[313133981,1706795451380,-500.0,0.00039452,4]
[313133982,1706795451389,-500.0,0.00039452,4]
[313133983,1706795451398,-500.0,0.00039452,4]
[313133984,1706795451408,-500.0,0.00039452,2]
[313133985,1706795451417,-775.07,0.00039452,4]
[313133986,1706795451427,-500.0,0.00039452,4]
[313133987,1706795451436,-500.0,0.00039452,4]
[313133988,1706795451445,-500.0,0.00039452,4]
[313133989,1706795451455,-500.0,0.00039452,4]
[313133990,1706795451464,-500.0,0.00039452,4]
[313133991,1706795451478,-500.0,0.00039452,4]
[313133992,1706795451487,-842.52,0.00039452,4]
[313133993,1706795451497,-500.0,0.00039452,4]
[313133994,1706795451507,-500.0,0.00039452,4]
[313133995,1706795451518,-500.0,0.00039452,4]
[313133996,1706795451527,-500.0,0.00039452,4]
[313133997,1706795451536,-500.0,0.00039452,5]
[313133998,1706795451546,-500.0,0.00039452,4]
[313133999,1706795451557,-500.0,0.00039452,4]
[313134000,1706795451566,-623.0,0.00039452,5]
[313134001,1706795451576,-1135.03,0.00039452,4]
[313134002,1706795451585,-500.0,0.00039452,4]
[313134003,1706795451594,-500.0,0.00039452,4]
[313134004,1706795451604,-500.0,0.00039452,4]
[313134005,1706795451613,-500.0,0.00039452,4]
[313134006,1706795451623,-539.73,0.00039452,4]
[313134007,1706795451633,-500.0,0.00039452,4]
[313134008,1706795451643,-157.44741643,0.00039452,4]
[313134009,1706795451653,-500.0,0.00039452,4]
[313134010,1706795451663,-500.0,0.00039452,4]
[313134011,1706795451672,-500.0,0.00039452,4]
[313134012,1706795451682,-500.0,0.00039452,4]
[313134013,1706795451691,-500.0,0.00039452,4]
[313134014,1706795451701,-500.0,0.00039452,4]
[313134015,1706795451710,-500.0,0.00039452,4]
[313134016,1706795451719,-4520.0,0.00039463,7]
[313134017,1706795451729,-2005.78,0.00039475,2]
[313134018,1706795451738,-211.0,0.0003949,2]
[313134019,1706795451747,-151.0201,0.00039498,10]
[313134020,1706795451756,-3248.10622323,0.000395,2]
[313134021,1706795451766,-300.0,0.000395,14]
[313134022,1706795451775,-443.0,0.000395,29]
[313134023,1706795451785,-500.0,0.00039523,7]
[313134024,1706795451795,-6867.24557167,0.00039563,2]
[313134025,1706795451805,-10000.0,0.0003957,2]
[313134026,1706795451815,-158.856589,0.00039598,30]
[313134027,1706795451824,-1000.0,0.000396,15]
[313134028,1706795451833,-1000.0,0.000396,15]
[313134029,1706795451843,-5000.0,0.00039639,4]
[313134030,1706795451852,-150.0,0.00039726,2]
[313134031,1706795451862,-150.0,0.00039726,2]
[313134032,1706795451873,-3834.772004,0.00039729,2]
[313134033,1706795451883,-1095.649144,0.00039729,2]
[313134034,1706795451893,-547.824572,0.00039729,2]
[313134035,1706795451902,-547.824572,0.00039729,2]
[313134036,1706795451912,-3333.891924,0.00039729,2]
[313134037,1706795451921,-245.549011,0.00039729,2]
[313134038,1706795451931,-945.0,0.00039737,7]
[313134039,1706795451940,-584.0,0.00039737,7]
[313134040,1706795451949,-583.0,0.00039737,7]
[313134041,1706795451959,-1233.0,0.0003976,2]
[313134042,1706795451969,-500.0,0.00039796,7]
[313134043,1706795451978,-151.0201,0.00039798,10]
[313134044,1706795451987,-1396.96,0.000398,7]
[313134045,1706795451997,-151.12552605,0.000398,5]
[313134046,1706795452007,-151.0,0.00039805,2]
[313134047,1706795452017,-91883.38329087,0.00039865,2]
[313134048,1706795452028,-11710.26,0.0003989,2]
[313134049,1706795452040,-834.14184907,0.00039899,7]
[313134050,1706795452050,-834.14184907,0.00039899,7]
[313134051,1706795452059,-834.14184907,0.00039899,7]
[313134052,1706795452069,-834.14184907,0.00039899,7]
[313134053,1706795452078,-834.14184907,0.00039899,7]
[313134054,1706795452088,-834.14184907,0.00039899,7]
[313134055,1706795452097,-834.14184907,0.00039899,7]
[313134056,1706795452106,-834.14184907,0.00039899,7]
[313134057,1706795452117,-834.14184907,0.00039899,7]
[313134058,1706795452127,-834.14184907,0.00039899,7]
[313134059,1706795452136,-834.14184907,0.00039899,7]
[313134060,1706795452146,-834.14184907,0.00039899,7]
[313134061,1706795452155,-834.14184907,0.00039899,7]
[313134062,1706795452165,-834.14184907,0.00039899,7]
[313134063,1706795452175,-834.14184907,0.00039899,7]
[313134064,1706795452185,-834.14184907,0.00039899,7]
[313134065,1706795452195,-834.14184907,0.00039899,7]
[313134066,1706795452205,-834.14184907,0.00039899,7]
[313134067,1706795452215,-834.14184907,0.00039899,7]
[313134068,1706795452224,-834.14,0.00039899,7]
[313134069,1706795452235,-339.93445735,0.00039899,7]
[313134070,1706795452245,-339.93445735,0.00039899,7]
[313134071,1706795452256,-339.93445735,0.00039899,7]
[313134072,1706795452267,-339.93445735,0.00039899,7]
[313134073,1706795452278,-339.93445735,0.00039899,7]
[313134074,1706795452301,-339.93445735,0.00039899,7]
[313134075,1706795452314,-339.93445735,0.00039899,7]
[313134076,1706795452325,-339.93445735,0.00039899,7]
[313134077,1706795452337,-339.93445735,0.00039899,7]
[313134078,1706795452348,-339.93445735,0.00039899,7]
[313134079,1706795452360,-339.93445735,0.00039899,7]
[313134080,1706795452370,-339.93445735,0.00039899,7]
[313134081,1706795452381,-339.93445735,0.00039899,7]
[313134082,1706795452391,-339.93445735,0.00039899,7]
[313134083,1706795452402,-339.93445735,0.00039899,7]
[313134084,1706795452412,-339.93445735,0.00039899,7]
[313134085,1706795452423,-339.93445735,0.00039899,7]
[313134086,1706795452435,-339.93445735,0.00039899,7]
[313134087,1706795452447,-339.93445735,0.00039899,7]
[313134088,1706795452459,-339.93,0.00039899,7]
[313134089,1706795452476,-537.02422121,0.00039899,7]
[313134090,1706795452486,-537.02422121,0.00039899,7]
[313134091,1706795452497,-537.02422121,0.00039899,7]
[313134092,1706795452507,-537.02422121,0.00039899,7]
[313134093,1706795452518,-537.02422121,0.00039899,7]
[313134094,1706795452530,-537.02422121,0.00039899,7]
[313134095,1706795452541,-537.02422121,0.00039899,7]
[313134096,1706795452553,-537.02422121,0.00039899,7]
[313134097,1706795452562,-537.02422121,0.00039899,7]
[313134098,1706795452572,-537.02422121,0.00039899,7]
[313134099,1706795452582,-537.02422121,0.00039899,7]
[313134100,1706795452592,-537.02422121,0.00039899,7]
[313134101,1706795452602,-537.02422121,0.00039899,7]
[313134102,1706795452612,-537.02422121,0.00039899,7]
[313134103,1706795452623,-537.02422121,0.00039899,7]
[313134104,1706795452633,-537.02422121,0.00039899,7]
[313134105,1706795452644,-537.02422121,0.00039899,7]
[313134106,1706795452655,-537.02422121,0.00039899,7]
[313134107,1706795452665,-537.02422121,0.00039899,7]
[313134108,1706795452675,-537.02,0.00039899,7]
[313134109,1706795452685,-683.57752102,0.00039899,7]
[313134110,1706795452696,-683.57752102,0.00039899,7]
[313134111,1706795452706,-683.57752102,0.00039899,7]
[313134112,1706795452715,-683.57752102,0.00039899,7]
[313134113,1706795452726,-683.57752102,0.00039899,7]
[313134114,1706795452736,-683.57752102,0.00039899,7]
[313134115,1706795452746,-683.57752102,0.00039899,7]
[313134116,1706795452757,-683.57752102,0.00039899,7]
[313134117,1706795452768,-683.57752102,0.00039899,7]
[313134118,1706795452778,-683.57752102,0.00039899,7]
[313134119,1706795452792,-683.57752102,0.00039899,7]
[313134120,1706795452804,-683.57752102,0.00039899,7]
[313134121,1706795452815,-683.57752102,0.00039899,7]
[313134122,1706795452825,-683.57752102,0.00039899,7]
[313134123,1706795452836,-683.57752102,0.00039899,7]
[313134124,1706795452846,-683.57752102,0.00039899,7]
[313134125,1706795452856,-683.57752102,0.00039899,7]
[313134126,1706795452866,-683.57752102,0.00039899,7]
[313134127,1706795452878,-683.57752102,0.00039899,7]
[313134128,1706795452888,-683.57,0.00039899,7]
[313134129,1706795452898,-607.59957746,0.00039899,7]
[313134130,1706795452909,-607.59957746,0.00039899,7]
[313134131,1706795452919,-607.59957746,0.00039899,7]
[313134132,1706795452929,-607.59957746,0.00039899,7]
[313134133,1706795452939,-607.59957746,0.00039899,7]
[313134134,1706795452949,-607.59957746,0.00039899,7]
[313134135,1706795452959,-607.59957746,0.00039899,7]
[313134136,1706795452969,-607.59957746,0.00039899,7]
[313134137,1706795452979,-607.59957746,0.00039899,7]
[313134138,1706795452989,-607.59957746,0.00039899,7]
[313134139,1706795452999,-607.59957746,0.00039899,7]
[313134140,1706795453010,-607.59957746,0.00039899,7]
[313134141,1706795453019,-607.59957746,0.00039899,7]
[313134142,1706795453030,-607.59957746,0.00039899,7]
[313134143,1706795453040,-607.59957746,0.00039899,7]
[313134144,1706795453050,-607.59957746,0.00039899,7]
[313134145,1706795453060,-607.59957746,0.00039899,7]
[313134146,1706795453070,-607.59957746,0.00039899,7]
[313134147,1706795453081,-607.59957746,0.00039899,7]
[313134148,1706795453091,-607.59,0.00039899,7]
[313134149,1706795453101,-1000.0,0.000399,15]
[313134150,1706795453112,-154.23,0.000399,3]
[313134151,1706795453126,-154.23,0.000399,3]
[313134152,1706795453137,-154.23,0.000399,3]
[313134153,1706795453148,-154.23,0.000399,3]
[313134154,1706795453357,-154.23,0.000399,3]
[313134155,1706795453367,-154.23,0.000399,3]
[313134156,1706795453377,-154.23,0.000399,3]
[313134157,1706795453386,-154.23,0.000399,3]
[313134158,1706795453399,-3286.69,0.000399,3]
[313134159,1706795453409,-3286.69,0.000399,3]
[313134160,1706795453419,-3286.69,0.000399,3]
[313134161,1706795453428,-3286.69,0.000399,3]
[313134162,1706795453437,-3286.69,0.000399,3]
[313134163,1706795453446,-3286.69,0.000399,3]
[313134164,1706795453456,-3286.69,0.000399,3]
[313134165,1706795453468,-3286.69,0.000399,3]
[313134166,1706795453481,-3286.69,0.000399,3]
[313134167,1706795453490,-3286.69,0.000399,3]
[313134168,1706795453499,-3286.69,0.000399,3]
[313134169,1706795453508,-3286.69,0.000399,3]
[313134170,1706795453517,-3286.69,0.000399,3]
[313134171,1706795453526,-3286.69,0.000399,3]
[313134172,1706795453535,-3286.69,0.000399,3]
[313134173,1706795453544,-3286.69,0.000399,3]
[313134174,1706795453554,-3286.69,0.000399,3]
[313134175,1706795453564,-3286.69,0.000399,3]
[313134176,1706795453573,-3286.69,0.000399,3]
[313134177,1706795453583,-3286.69,0.000399,3]
[313134178,1706795453593,-313.74,0.0003998,2]
[313134179,1706795453603,-200.0,0.00039987,5]
[313134180,1706795453613,-200.0,0.00039987,4]
[313134181,1706795453624,-1000.0,0.00039998,10]
[313134182,1706795453634,-417.1403566,0.00039999,31]
[313134183,1706795453644,-500.0,0.00039999,31]
[313134184,1706795453653,-152.6036546,0.00039999,31]
[313134185,1706795453663,-500.0,0.00039999,31]
[313134186,1706795453673,-500.0,0.00039999,31]
[313134187,1706795453683,-500.0,0.00039999,31]
[313134188,1706795453692,-500.0,0.00039999,31]
[313134189,1706795453702,-500.0,0.00039999,31]
[313134190,1706795453711,-500.0,0.00039999,31]
[313134191,1706795453721,-500.0,0.00039999,31]
[313134192,1706795453730,-500.0,0.00039999,31]
[313134193,1706795453740,-200.0,0.00039999,31]
[313134194,1706795453749,-289.43226235,0.00039999,31]
[313134195,1706795453759,-500.0,0.00039999,31]
[313134196,1706795453768,-647.31557757,0.00039999,31]
[313134197,1706795453778,-500.0,0.00039999,31]
[313134198,1706795453787,-520.80423679,0.00039999,31]
[313134199,1706795453797,-332.95219229,0.00039999,31]
[313134200,1706795453809,-500.0,0.00039999,31]
[313134201,1706795453818,-500.0,0.00039999,31]
[313134202,1706795453828,-500.0,0.00039999,31]
[313134203,1706795453839,-500.0,0.00039999,31]
[313134204,1706795453848,-500.0,0.00039999,31]
[313134205,1706795453858,-500.0,0.00039999,31]
[313134206,1706795453868,-500.0,0.00039999,31]
[313134207,1706795453878,-500.0,0.00039999,31]
[313134208,1706795453887,-500.0,0.00039999,31]
[313134209,1706795453896,-500.0,0.00039999,31]
[313134210,1706795453906,-500.0,0.00039999,31]
[313134211,1706795453915,-478.4571771,0.00039999,31]
[313134212,1706795453924,-500.0,0.00039999,31]
[313134213,1706795453933,-500.0,0.00039999,31]
[313134214,1706795453942,-500.0,0.00039999,31]
[313134215,1706795453951,-500.0,0.00039999,31]
[313134216,1706795453960,-550.0,0.00039999,31]
[313134217,1706795453970,-500.0,0.00039999,31]
[313134218,1706795453979,-500.0,0.00039999,31]
[313134219,1706795453988,-500.0,0.00039999,31]
[313134220,1706795453998,-500.0,0.00039999,31]
[313134221,1706795454008,-500.0,0.00039999,31]
[313134222,1706795454017,-205.99239038,0.00039999,31]
[313134223,1706795454027,-500.0,0.00039999,31]
[313134224,1706795454036,-500.0,0.00039999,31]
[313134225,1706795454045,-500.0,0.00039999,31]
[313134226,1706795454056,-500.0,0.00039999,31]
[313134227,1706795454065,-500.0,0.00039999,31]
[313134228,1706795454084,-500.0,0.00039999,31]
[313134229,1706795454096,-500.0,0.00039999,31]
[313134230,1706795454107,-500.0,0.00039999,31]
[313134231,1706795454118,-500.0,0.00039999,31]
[313134232,1706795454129,-500.0,0.00039999,31]
[313134233,1706795454140,-500.0,0.00039999,31]
[313134234,1706795454150,-500.0,0.00039999,31]
[313134235,1706795454159,-500.0,0.00039999,31]
[313134236,1706795454169,-500.0,0.00039999,31]
[313134237,1706795454178,-500.0,0.00039999,31]
[313134238,1706795454187,-500.0,0.00039999,31]
[313134239,1706795454197,-500.0,0.00039999,31]
[313134240,1706795454207,-500.0,0.00039999,31]
[313134241,1706795454216,-212.95588059,0.00039999,31]
[313134242,1706795454226,-378.36442803,0.00039999,31]
[313134243,1706795454237,-500.0,0.00039999,31]
[313134244,1706795454247,-443.56250068,0.00039999,31]
[313134245,1706795454256,-500.0,0.00039999,31]
[313134246,1706795454267,-647.36686387,0.00039999,31]
[313134247,1706795454277,-435.70893565,0.00039999,31]
[313134248,1706795454287,-100000.0,0.0004,20]
[313134249,1706795454297,-1233.15971709,0.0004,30]
[313134250,1706795454308,-210.37418137,0.0004,4]
[313134251,1706795454318,-1260.52,0.0004,14]
[313134252,1706795454327,-1086.17428808,0.0004,10]
[313134253,1706795454337,-156.54972447,0.0004,2]
[313134254,1706795454346,-54427.23110449,0.0004,4]
[313134255,1706795454355,-1688.02,0.0004,14]
[313134256,1706795454365,-2013.16271713,0.0004,4]
[313134257,1706795454374,-2179.55227972,0.0004,30]
[313134258,1706795454384,-519.4823562,0.0004,30]
[313134259,1706795454393,-289.52758781,0.0004,4]
[313134260,1706795454403,-834.30126299,0.0004,4]
[313134261,1706795454414,-1734.46233529,0.0004,4]
[313134262,1706795454423,-20195.03908802,0.0004,21]
[313134263,1706795454433,-20055.17411922,0.0004,21]
[313134264,1706795454442,-20055.11534201,0.0004,21]
[313134265,1706795454451,-20195.05295477,0.0004,21]
[313134266,1706795454461,-14851.56615665,0.0004,21]
[313134267,1706795454474,-2800.5603414,0.0004,15]
[313134268,1706795454484,-510.80431651,0.0004,2]
[313134269,1706795454493,-1688.0,0.0004,14]
[313134270,1706795454503,-1609.93,0.0004,14]
[313134271,1706795454512,-1121.76,0.0004,14]
[313134272,1706795454522,-3000.0,0.0004,10]
[313134273,1706795454532,-150.84403623,0.0004,5]
[313134274,1706795454541,-5000.0,0.0004,2]
[313134275,1706795454553,-674.75159871,0.0004,20]
[313134276,1706795454563,-150.0,0.0004,2]
[313134277,1706795454572,-40866.61562521,0.0004,2]
[313134278,1706795454582,-600.0,0.0004,41]
[313134279,1706795454591,-470.95151905,0.0004,7]
[313134280,1706795454601,-10045.86,0.0004,4]
[313134281,1706795454610,-2000.0,0.0004,2]
[313134282,1706795454619,-151.0,0.0004,30]
[313134283,1706795454628,-20800.59524066,0.0004,15]
[313134284,1706795454637,-1000.0,0.0004,15]
[313134285,1706795454647,-1337.94,0.0004,4]
[313134286,1706795454657,-405.78446523,0.0004,7]
[313134287,1706795454667,-570.86417919,0.0004,4]